fUST/lending_fUST_20250410
["ID","MTS","AMOUNT","RATE_DAILY","PERIOD"]
[357597690,1744224642901,-11.40315309,0.00019178,2]
[357597692,1744224642914,-256.01562691,0.00019178,2]
[357597694,1744224642924,-500.0,0.00019178,2]
[357597696,1744224642934,-267.41878,0.00019178,2]
[357597698,1744224642944,-267.41878,0.00019178,2]
[357597700,1744224642955,-267.41878,0.00019178,2]
[357597702,1744224642966,-500.0,0.00019178,2]
[357597704,1744224642976,-267.41878,0.00019178,2]
[357597706,1744224642986,-267.41878,0.00019178,2]
[357597708,1744224642995,-267.41878,0.00019178,2]
[357597710,1744224643007,-267.41878,0.00019178,2]
[357597712,1744224643018,-267.41878,0.00019178,2]
[357597714,1744224643028,-267.418783,0.00019178,2]
[357597716,1744224643039,-500.0,0.00019178,2]
[357597718,1744224643049,-500.0,0.00019178,2]
[357597720,1744224643059,-500.0,0.00019178,2]
[357597722,1744224643069,-500.0,0.00019178,2]
[357597724,1744224643079,-500.0,0.00019178,2]
[357597726,1744224643089,-500.0,0.00019178,2]
[357597728,1744224643099,-500.0,0.00019178,2]
[357597730,1744224643109,-500.0,0.00019178,2]
[357597732,1744224643119,-500.0,0.00019178,2]
[357597734,1744224643128,-500.0,0.00019178,2]
[357597736,1744224643138,-500.0,0.00019178,2]
[357597738,1744224643148,-151.0,0.00019178,2]
[357597740,1744224643158,-508.4613773,0.00019178,2]
[357597742,1744224643167,-500.0,0.00019178,2]
[357597745,1744224643177,-500.0,0.00019178,2]
[357597746,1744224643187,-151.0,0.00019178,2]
[357597747,1744224643196,-151.0,0.00019178,2]
[357597748,1744224643209,-500.0,0.00019178,2]
[357597750,1744224643219,-500.0,0.00019178,2]
[357597752,1744224643229,-151.0,0.00019178,2]
[357597753,1744224643239,-151.0,0.00019178,2]
[357597755,1744224643248,-196.863398,0.00019178,2]
[357597756,1744224643258,-500.0,0.00019178,2]
[357597758,1744224643268,-500.0,0.00019178,2]
[357597761,1744224643278,-500.0,0.00019178,2]
[357597763,1744224643288,-500.0,0.00019178,2]
[357597767,1744224643298,-500.0,0.00019178,2]
[357597769,1744224643307,-500.0,0.00019178,2]
[357597771,1744224643316,-500.0,0.00019178,2]
[357597773,1744224643326,-500.0,0.00019178,2]
[357597775,1744224643336,-500.0,0.00019178,2]
[357597776,1744224643345,-500.0,0.00019178,2]
[357597777,1744224643355,-500.0,0.00019178,2]
[357597778,1744224643364,-500.0,0.00019178,2]
[357597779,1744224643373,-500.0,0.00019178,2]
[357597780,1744224643383,-500.0,0.00019178,2]
[357597781,1744224643393,-500.0,0.00019178,2]
[357597782,1744224643403,-500.0,0.00019178,2]
[357597783,1744224643412,-500.0,0.00019178,2]
[357597784,1744224643421,-500.34367638,0.00019178,2]
[357597785,1744224643431,-500.0,0.00019178,2]
[357597786,1744224643440,-2396.66,0.00019178,2]
[357597787,1744224643450,-500.0,0.00019178,2]
[357597788,1744224643461,-500.0,0.00019178,2]
[357597789,1744224643471,-500.0,0.00019178,2]
[357597790,1744224643480,-500.0,0.00019178,2]
[357597791,1744224643490,-562.24,0.00019178,2]
[357597792,1744224643499,-500.0,0.00019178,2]
[357597793,1744224643509,-500.0,0.00019178,2]
[357597794,1744224643519,-501.05803349,0.00019178,2]
[357597795,1744224643528,-500.0,0.00019178,2]
[357597796,1744224643538,-500.0,0.00019178,2]
[357597797,1744224643548,-151.0,0.00019178,2]
[357597798,1744224643558,-151.0,0.00019178,2]
[357597799,1744224643568,-151.0,0.00019178,2]
[357597800,1744224643578,-151.0,0.00019178,2]
[357597801,1744224643588,-500.0,0.00019178,2]
[357597802,1744224643598,-151.0,0.00019178,2]
[357597803,1744224643607,-151.0,0.00019178,2]
[357597804,1744224643617,-500.0,0.00019178,2]
[357597805,1744224643626,-151.0,0.00019178,2]
[357597806,1744224643636,-151.0,0.00019178,2]
[357597807,1744224643646,-500.0,0.00019178,2]
[357597808,1744224643656,-500.0,0.00019178,2]
[357597809,1744224643666,-151.0,0.00019178,2]
[357597810,1744224643676,-500.0,0.00019178,2]
[357597811,1744224643687,-269.129806,0.00019178,2]
[357597812,1744224643696,-500.0,0.00019178,2]
[357597813,1744224643708,-500.0,0.00019178,2]
[357597814,1744224643719,-266.5991,0.00019178,2]
[357597815,1744224643729,-504.56075586,0.00019178,2]
[357597816,1744224643739,-500.0,0.00019178,2]
[357597817,1744224643754,-500.0,0.00019178,2]
[357597818,1744224643764,-500.0,0.00019178,2]
[357597819,1744224643773,-500.0,0.00019178,2]
[357597820,1744224643783,-500.0,0.00019178,2]
[357597821,1744224643794,-500.0,0.00019178,2]
[357597822,1744224643804,-191.793624,0.00019178,2]
[357597823,1744224643814,-191.793624,0.00019178,2]
[357597824,1744224643824,-500.0,0.00019178,2]
[357597825,1744224643835,-191.793624,0.00019178,2]
[357597826,1744224643846,-500.0,0.00019178,2]
[357597827,1744224643855,-191.793624,0.00019178,2]
[357597828,1744224643865,-501.04387304,0.00019178,2]
[357597829,1744224643875,-191.793624,0.00019178,2]
[357597830,1744224643884,-500.0,0.00019178,2]
[357597831,1744224643894,-191.793624,0.00019178,2]
[357597832,1744224643904,-191.793624,0.00019178,2]
[357597833,1744224643914,-191.793624,0.00019178,2]
[357597834,1744224643924,-500.0,0.00019178,2]
[357597835,1744224643934,-191.793624,0.00019178,2]
[357597836,1744224643943,-500.0,0.00019178,2]
[357597837,1744224643953,-191.793624,0.00019178,2]
[357597838,1744224643964,-191.793624,0.00019178,2]
[357597839,1744224643973,-500.0,0.00019178,2]
[357597840,1744224643983,-1915.57,0.00019178,2]
[357597841,1744224643993,-191.793624,0.00019178,2]
[357597842,1744224644003,-191.793624,0.00019178,2]
[357597843,1744224644013,-191.793624,0.00019178,2]
[357597844,1744224644023,-191.793624,0.00019178,2]
[357597845,1744224644033,-191.793622,0.00019178,2]
[357597846,1744224644042,-901.56,0.00019178,2]
[357597847,1744224644052,-500.0,0.00019178,2]
[357597848,1744224644061,-856.94,0.00019178,2]
[357597849,1744224644071,-500.0,0.00019178,2]
[357597850,1744224644081,-500.0,0.00019178,2]
[357597851,1744224644091,-500.0,0.00019178,2]
[357597852,1744224644100,-500.0,0.00019178,2]
[357597853,1744224644110,-354.5431272,0.00019178,2]
[357597854,1744224644120,-678.95,0.00019178,2]
[357597855,1744224644129,-500.0,0.00019178,2]
[357597856,1744224644139,-500.0,0.00019178,2]
[357597857,1744224644148,-500.0,0.00019178,2]
[357597858,1744224644157,-500.0,0.00019178,2]
[357597859,1744224644167,-500.0,0.00019178,2]
[357597860,1744224644176,-500.0,0.00019178,2]
[357597861,1744224644186,-500.0,0.00019178,2]
[357597862,1744224644196,-500.0,0.00019178,2]
[357597863,1744224644207,-500.0,0.00019178,2]
[357597864,1744224644220,-983.38,0.00019178,2]
[357597865,1744224644231,-556.5,0.00019178,2]
[357597866,1744224644241,-489.18716393,0.00019178,2]
[357597900,1744224645073,-10.81283607,0.00019178,2]
[357597902,1744224645083,-500.0,0.00019178,2]
[357597904,1744224645092,-1903.05,0.00019178,2]
[357597906,1744224645102,-1000.0,0.00019178,2]
[357597908,1744224645111,-500.0,0.00019178,2]
[357597910,1744224645122,-500.0,0.00019178,2]
[357597912,1744224645131,-516.49,0.00019178,2]
[357597914,1744224645141,-804.27,0.00019178,2]
[357597916,1744224645151,-500.0,0.00019178,2]
[357597918,1744224645161,-500.0,0.00019178,2]
[357597920,1744224645172,-500.0,0.00019178,2]
[357597922,1744224645182,-500.0,0.00019178,2]
[357597924,1744224645192,-1460.74,0.00019178,2]
[357597926,1744224645202,-500.0,0.00019178,2]
[357597928,1744224645214,-500.0,0.00019178,2]
[357597931,1744224645224,-221.59627289,0.00019178,2]
[357598094,1744224646771,-150.112,0.00018323,2]
[357598095,1744224646781,-278.40372711,0.00019178,2]
[357598096,1744224646793,-510.16582231,0.00019178,2]
[357598097,1744224646802,-500.0,0.00019178,2]
[357598098,1744224646812,-131.81845058,0.00019178,2]
[357598202,1744224647895,-368.18154942,0.00019178,2]
[357598204,1744224647905,-500.0,0.00019178,2]
[357598207,1744224647915,-500.0,0.00019178,2]
[357598209,1744224647925,-348.5340347,0.00019178,2]
[357598581,1744224652929,250.0,0.00014905,2]
[357598746,1744224761039,250.0,0.00014905,2]
[357598747,1744224936860,-250.0,0.00015098,2]
[357598748,1744224936885,-233.472562,0.00016534,2]
[357598749,1744224936911,-233.472562,0.00016534,2]
[357598750,1744224936938,-300.0,0.00017225,2]
[357598751,1744224936965,-500.0,0.00017226,2]
[357598752,1744224936990,-500.0,0.00017226,2]
[357598753,1744224937015,-292.961503,0.00017226,2]
[357598754,1744224937039,-500.0,0.00017226,2]
[357598755,1744224937062,-217.37986345,0.00017226,2]
[357598756,1744224937086,-500.0,0.00017226,2]
[357598757,1744224937113,-500.0,0.00017226,2]
[357598758,1744224937137,-500.0,0.00017226,2]
[357598759,1744224937163,-500.0,0.00017226,2]
[357598760,1744224937188,-500.0,0.00017226,2]
[357598761,1744224937212,-500.0,0.00017226,2]
[357598762,1744224937237,-500.0,0.00017226,2]
[357598763,1744224937262,-500.0,0.00017226,2]
[357598764,1744224937285,-500.0,0.00017226,2]
[357598765,1744224937310,-500.0,0.00017226,2]
[357598766,1744224937334,-500.0,0.00017226,2]
[357598767,1744224937358,-500.0,0.00017226,2]
[357598768,1744224937384,-345.19703969,0.00017226,2]
[357598769,1744224937424,-500.0,0.00017226,2]
[357598770,1744224937450,-500.0,0.00017226,2]
[357598771,1744224937476,-500.0,0.00017226,2]
[357598772,1744224937503,-500.0,0.00017226,2]
[357598773,1744224937529,-500.0,0.00017226,2]
[357598774,1744224937553,-500.0,0.00017226,2]
[357598775,1744224937580,-500.0,0.00017226,2]
[357598776,1744224937607,-500.0,0.00017226,2]
[357598777,1744224937633,-500.0,0.00017226,2]
[357598778,1744224937659,-500.0,0.00017226,2]
[357598779,1744224937684,-500.0,0.00017226,2]
[357598780,1744224937712,-500.0,0.00017226,2]
[357598781,1744224937739,-500.0,0.00017226,2]
[357598782,1744224937767,-500.0,0.00017226,2]
[357598783,1744224937793,-500.0,0.00017226,2]
[357598784,1744224937819,-500.0,0.00017226,2]
[357598785,1744224937849,-500.0,0.00017226,2]
[357598786,1744224937875,-500.0,0.00017226,2]
[357598787,1744224937902,-500.0,0.00017226,2]
[357598788,1744224937929,-500.0,0.00017226,2]
[357598789,1744224937953,-500.0,0.00017226,2]
[357598790,1744224937982,-500.0,0.00017226,2]
[357598791,1744224938008,-500.0,0.00017226,2]
[357598792,1744224938035,-500.0,0.00017226,2]
[357598793,1744224938062,-500.0,0.00017226,2]
[357598794,1744224938087,-500.0,0.00017226,2]
[357598795,1744224938113,-500.0,0.00017226,2]
[357598796,1744224938138,-500.0,0.00017226,2]
[357598797,1744224938166,-500.0,0.00017226,2]
[357598798,1744224938197,-500.0,0.00017226,2]
[357598799,1744224938230,-500.0,0.00017226,2]
[357598800,1744224938258,-500.0,0.00017226,2]
[357598801,1744224938285,-261.01349912,0.00017226,2]
[357598802,1744224938310,-500.0,0.00017226,2]
[357598803,1744224938337,-500.0,0.00017226,2]
[357598804,1744224938362,-500.0,0.00017226,2]
[357598805,1744224938391,-500.0,0.00017226,2]
[357598806,1744224938416,-500.0,0.00017226,2]
[357598807,1744224938441,-167.66489468,0.00017226,2]
[357598808,1744224938467,-500.0,0.00017226,2]
[357598809,1744224938495,-500.0,0.00017226,2]
[357598810,1744224938523,-500.0,0.00017226,2]
[357598811,1744224938551,-500.0,0.00017226,2]
[357598812,1744224938577,-500.0,0.00017226,2]
[357598813,1744224938604,-500.0,0.00017226,2]
[357598814,1744224938631,-500.0,0.00017226,2]
[357598815,1744224938866,-500.0,0.00017226,2]
[357598816,1744224938894,-500.0,0.00017226,2]
[357598817,1744224938923,-500.0,0.00017226,2]
[357598818,1744224938950,-352.94229833,0.00017226,2]
[357598819,1744224938978,-500.0,0.00017226,2]
[357598820,1744224939005,-500.0,0.00017226,2]
[357598821,1744224939032,-500.0,0.00017226,2]
[357598822,1744224939060,-500.0,0.00017226,2]
[357598823,1744224939087,-500.0,0.00017226,2]
[357598824,1744224939112,-300.0,0.00017226,2]
[357598825,1744224939136,-37666.4310028,0.00017227,2]
[357598826,1744224939160,-529.44646261,0.000175,2]
[357598827,1744224939185,-174.82739,0.000176,2]
[357598828,1744224939209,-174.82739,0.000176,2]
[357598829,1744224939232,-529.44646257,0.00017875,2]
[357598830,1744224963945,500.0,0.00017226,2]
[357598831,1744224963988,446.14025331,0.00017226,2]
[357598832,1744225046543,8948.6766981,0.00017981,2]
[357598833,1744225064107,1576.2336532,0.00017897,2]
[357598835,1744225216801,604.5951353,0.00017883,2]
[357599799,1744225541889,12395.27132984,0.00017665,2]
[357599800,1744225541914,12504.72867016,0.00017665,2]
[357599865,1744225705969,6877.1701979,0.00017,2]
[357599868,1744225730328,-500.0,0.00047502,120]
[357599869,1744225730356,-500.0,0.00047502,120]
[357599870,1744225730383,-301.20550752,0.00047502,120]
[357599871,1744225730410,-2079.0,0.00047502,120]
[357599872,1744225730435,-5000.0,0.00047502,90]
[357599873,1744225730463,-200.2091185,0.00047502,120]
[357599874,1744225730489,-800.0,0.00047502,120]
[357599875,1744225730514,-1000.0,0.00047502,120]
[357599876,1744225730538,-1000.0,0.00047502,120]
[357599877,1744225730563,-1135.0,0.00047502,120]
[357599878,1744225730587,-7860.0,0.00047502,60]
[357599879,1744225730613,-75211.45522089,0.00047502,31]
[357599880,1744225730638,-10000.0,0.00047502,120]
[357599881,1744225730664,-1923.0,0.00047502,120]
[357599882,1744225730689,-690.65538588,0.00047502,30]
[357599883,1744225730715,-375.41201531,0.00047502,30]
[357599884,1744225730741,-1103.78536526,0.00047502,60]
[357599885,1744225730767,-584.57233512,0.00047502,30]
[357599886,1744225730793,-182.53253028,0.00047502,120]
[357599887,1744225730819,-928.38908999,0.00047502,120]
[357599888,1744225730845,-161.9530319,0.00047502,30]
[357599889,1744225730872,-570.27955615,0.00047502,30]
[357599890,1744225730905,-1236.83818804,0.00047502,120]
[357599891,1744225730935,-222.5081531,0.00047502,120]
[357599892,1744225730965,-588.53049651,0.00047502,60]
[357599893,1744225730995,-700.67199654,0.00047502,30]
[357599894,1744225731025,-5189.0,0.00047502,30]
[357599895,1744225731057,-15998.95999365,0.00047502,120]
[357599896,1744225731086,-540000.057539,0.00047502,30]
[357599897,1744225731114,-512.24325343,0.00047502,110]
[357599898,1744225731154,-500.0,0.00047502,120]
[357599899,1744225731186,-386.37286764,0.00047502,120]
[357599900,1744225731216,-222557.36835529,0.00047502,30]
[357599902,1744225738487,-2900000.0,0.00047502,30]
[357599903,1744225742947,-1877442.63164471,0.00047502,30]
[357599904,1744225742974,-1022557.36835529,0.00047502,30]
[357599905,1744225746303,-2900000.0,0.00047502,30]
[357599906,1744225746363,219.5249359,0.00017888,2]
[357599908,1744225750137,-1077442.63164471,0.00047502,30]
[357599909,1744225750172,-10500.0,0.00047502,30]
[357599910,1744225750199,-176.25093245,0.00047502,30]
[357599911,1744225750226,-5078.82592177,0.00047502,30]
[357599912,1744225750252,-24601.03364675,0.00047502,30]
[357599913,1744225750281,-261.0,0.00047502,30]
[357599914,1744225750308,-500.0,0.00047502,120]
[357599915,1744225750333,-2389.44054225,0.00047502,120]
[357599916,1744225750359,-237.35071676,0.00047502,120]
[357599917,1744225750386,-2507.13677133,0.00047502,32]
[357599918,1744225750411,-5000.0,0.00047502,90]
[357599919,1744225750439,-57135.0,0.00047502,30]
[357599920,1744225750465,-1159.515804,0.00047502,30]
[357599921,1744225750491,-500.0,0.00047502,30]
[357599922,1744225750515,-500.0,0.00047502,30]
[357599923,1744225750541,-500.0,0.00047502,30]
[357599949,1744225811056,246.482099,0.00017627,2]
[357599983,1744225831775,-250.0,0.00018081,2]
[357599986,1744225831785,-360.34265784,0.0001818,7]
[357599988,1744225831795,-300.0,0.00018425,2]
[357599990,1744225831804,-706.0,0.00018426,2]
[357599992,1744225831815,-552.834,0.00018426,2]
[357599994,1744225831825,-1784.90693092,0.00018426,2]
[357599996,1744225831837,-397.5,0.00018426,2]
[357600007,1744225831942,-69.59306908,0.00018426,2]
[357600009,1744225831952,-50000.0,0.00018828,2]
[357600010,1744225831962,-500.0,0.00018828,2]
[357600011,1744225831971,-500.0,0.00018828,2]
[357600012,1744225831981,-500.0,0.00018828,2]
[357600013,1744225831993,-584.55705546,0.00018828,2]
[357600015,1744225832004,-463.07387719,0.00018828,2]
[357600017,1744225832014,-500.0,0.00018828,2]
[357600021,1744225832024,-494.10183819,0.00018828,2]
[357600024,1744225832035,-500.0,0.00018828,2]
[357600027,1744225832044,-847.11434015,0.0001886,2]
[357600029,1744225832055,-211.09248022,0.00018894,2]
[357600031,1744225832065,-500.0,0.00018894,2]
[357600032,1744225832074,-500.0,0.00018894,2]
[357600033,1744225832084,-500.0,0.00018894,2]
[357600034,1744225832094,-277.37122942,0.00018894,2]
[357600035,1744225832104,-847.11434011,0.00018895,2]
[357600036,1744225832114,-847.11434011,0.0001893,2]
[357600037,1744225832124,-160.0,0.0001896,2]
[357600038,1744225832134,-160.0,0.0001896,2]
[357600039,1744225832144,-160.0,0.0001896,2]
[357600040,1744225832154,-837.59699578,0.00018961,2]
[357600041,1744225832168,-847.11434011,0.00018965,2]
[357600042,1744225832178,-751.87,0.00018986,2]
[357600043,1744225832188,-160.48,0.00018993,2]
[357600044,1744225832200,-847.11434011,0.00019,2]
[357600045,1744225832213,-3550.74481552,0.00019006,2]
[357600046,1744225832656,-263.59387975,0.00019006,2]
[357600047,1744225832674,-8719.50909046,0.00019006,2]
[357600048,1744225832688,-419.56135214,0.00019006,2]
[357600049,1744225832701,-160.0,0.00019006,2]
[357600050,1744225832715,-152.0,0.00019038,2]
[357600051,1744225832728,-205.9174864,0.00019061,2]
[357600052,1744225832743,-141.101902,0.00019067,2]
[357600070,1744225834838,152.09409704,0.00017735,2]
[357600071,1744225834862,3749.02824546,0.00017735,2]
[357600125,1744225838019,-320.0,0.00018427,2]
[357600127,1744225838032,-81.0,0.00018427,2]
[357600129,1744225838042,-9.898098,0.00019067,2]
[357600131,1744225838052,-591.48758388,0.00019073,2]
[357600132,1744225838062,-500.45310543,0.00019073,2]
[357600134,1744225838073,-211.7103299,0.00019073,2]
[357600135,1744225838083,-500.0,0.00019073,2]
[357600136,1744225838092,-500.0,0.00019073,2]
[357600137,1744225838102,-500.0,0.00019073,2]
[357600139,1744225838111,-500.0,0.00019073,2]
[357600141,1744225838121,-214.95911372,0.00019073,2]
[357600142,1744225838130,-412.65867733,0.00019073,2]
[357600144,1744225838139,-500.0,0.00019073,2]
[357600146,1744225838149,-500.0,0.00019073,2]
[357600147,1744225838158,-500.0,0.00019073,2]
[357600149,1744225838169,-500.0,0.00019073,2]
[357600151,1744225838179,-500.0,0.00019073,2]
[357600154,1744225838189,-501.31196468,0.00019073,2]
[357600155,1744225838199,-573.25758573,0.00019073,2]
[357600157,1744225838208,-500.0,0.00019073,2]
[357600161,1744225838218,-375.05775775,0.00019073,2]
[357600163,1744225838228,-177.5220167,0.00019073,2]
[357600165,1744225838238,-501.26066108,0.00019073,2]
[357600167,1744225838254,-500.0,0.00019073,2]
[357600169,1744225838264,-501.1324001,0.00019073,2]
[357600170,1744225838275,-272.14063616,0.00019073,2]
[357600172,1744225838286,-180.733,0.00019073,2]
[357600174,1744225838297,-6977.05044702,0.00019078,2]
[357600176,1744225838310,-1464.02868837,0.00019078,2]
[357600469,1744225841095,-178974.20652483,0.00019078,2]
[357600564,1744225843098,-9323.54361232,0.00019078,2]
[357600565,1744225843113,-4115.00000145,0.00019078,2]
[357600566,1744225843125,-111871.24683169,0.00019078,2]
[357600567,1744225843136,-506.00549028,0.00019078,2]
[357600568,1744225843147,-29623.43266109,0.00019078,2]
[357600621,1744225845928,-3234.98145832,0.00019078,2]
[357600622,1744225845991,-20000.0,0.00019078,2]
[357600623,1744225846004,-1237.43049552,0.00019078,2]
[357600721,1744226381105,119719.36913836,0.00018,2]
[357600722,1744226491547,431.33,0.00010959,2]
[357600723,1744226502104,359.44,0.00010959,2]
[357600724,1744226506349,152.0744874,0.000179,2]
[357600725,1744226512695,299.54,0.00010959,2]
[357600726,1744226523508,249.61,0.00010959,2]
[357600727,1744226534453,208.01,0.00010959,2]
[357600728,1744226545084,173.34,0.00010959,2]
[357600729,1744226555836,866.74,0.00010959,2]
[357600730,1744226663278,23791.51812878,0.00017433,2]
[357600905,1744227032133,-300.0,0.00016999,2]
[357600907,1744227032143,-16579.87750803,0.00017,2]
[357600910,1744227032163,-331.406695,0.0001728,2]
[357600912,1744227032173,-238.5327238,0.00017396,2]
[357600914,1744227032183,-1108.48187122,0.00017433,2]
[357600916,1744227032193,-410.29,0.000175,4]
[357600918,1744227032203,-50000.0,0.00017999,2]
[357600920,1744227032212,-500.0,0.00017999,2]
[357600923,1744227032222,-411.69603838,0.00017999,2]
[357600926,1744227032231,-500.0,0.00017999,2]
[357600929,1744227032241,-500.0,0.00017999,2]
[357600932,1744227032251,-193.7379053,0.00017999,2]
[357600935,1744227032260,-500.0,0.00017999,2]
[357600938,1744227032269,-500.0,0.00017999,2]
[357600941,1744227032279,-500.0,0.00017999,2]
[357600944,1744227032288,-500.0,0.00017999,2]
[357600947,1744227032300,-500.0,0.00017999,2]
[357600950,1744227032309,-500.01249412,0.00017999,2]
[357600953,1744227032318,-500.0,0.00017999,2]
[357600957,1744227032328,-500.0,0.00017999,2]
[357600960,1744227032339,-500.0,0.00017999,2]
[357600963,1744227032349,-500.0,0.00017999,2]
[357600966,1744227032359,-500.0,0.00017999,2]
[357600969,1744227032369,-500.0,0.00017999,2]
[357600971,1744227032379,-500.0,0.00017999,2]
[357600974,1744227032388,-500.0,0.00017999,2]
[357600976,1744227032398,-500.0,0.00017999,2]
[357600978,1744227032408,-500.0,0.00017999,2]
[357600980,1744227032418,-500.0,0.00017999,2]
[357600982,1744227032428,-500.0,0.00017999,2]
[357600984,1744227032439,-500.0,0.00017999,2]
[357600987,1744227032449,-500.0,0.00017999,2]
[357600990,1744227032460,-500.0,0.00017999,2]
[357600992,1744227032470,-500.0,0.00017999,2]
[357600994,1744227032479,-500.0,0.00017999,2]
[357600996,1744227032489,-500.0,0.00017999,2]
[357600998,1744227032499,-500.0,0.00017999,2]
[357601000,1744227032509,-500.0,0.00017999,2]
[357601002,1744227032519,-500.0,0.00017999,2]
[357601003,1744227032528,-500.0,0.00017999,2]
[357601004,1744227032538,-500.0,0.00017999,2]
[357601005,1744227032552,-500.0,0.00017999,2]
[357601006,1744227032562,-500.0,0.00017999,2]
[357601007,1744227032572,-500.0,0.00017999,2]
[357601008,1744227032581,-500.0,0.00017999,2]
[357601009,1744227032592,-500.0,0.00017999,2]
[357601010,1744227032780,-500.0,0.00017999,2]
[357601011,1744227032795,-500.0,0.00017999,2]
[357601012,1744227032805,-500.0,0.00017999,2]
[357601013,1744227032815,-500.0,0.00017999,2]
[357601014,1744227032825,-500.0,0.00017999,2]
[357601015,1744227032835,-500.0,0.00017999,2]
[357601016,1744227032844,-500.0,0.00017999,2]
[357601017,1744227032854,-500.0,0.00017999,2]
[357601018,1744227032864,-500.0,0.00017999,2]
[357601019,1744227032875,-500.0,0.00017999,2]
[357601020,1744227032884,-500.0,0.00017999,2]
[357601021,1744227032894,-500.0,0.00017999,2]
[357601022,1744227032904,-500.0,0.00017999,2]
[357601023,1744227032913,-500.0,0.00017999,2]
[357601024,1744227032923,-500.0,0.00017999,2]
[357601025,1744227032933,-500.0,0.00017999,2]
[357601026,1744227032942,-500.0,0.00017999,2]
[357601027,1744227032952,-500.0,0.00017999,2]
[357601028,1744227032962,-500.0,0.00017999,2]
[357601029,1744227032971,-298.52452801,0.00017999,2]
[357601030,1744227032982,-500.0,0.00017999,2]
[357601031,1744227032991,-500.0,0.00017999,2]
[357601032,1744227033001,-500.0,0.00017999,2]
[357601033,1744227033011,-500.0,0.00017999,2]
[357601034,1744227033021,-500.0,0.00017999,2]
[357601035,1744227033030,-500.0,0.00017999,2]
[357601036,1744227033040,-500.0,0.00017999,2]
[357601037,1744227033051,-500.0,0.00017999,2]
[357601038,1744227033061,-500.0,0.00017999,2]
[357601039,1744227033072,-500.0,0.00017999,2]
[357601040,1744227033082,-570.08208576,0.00017999,2]
[357601041,1744227033093,-1191.03085664,0.00017999,2]
[357601042,1744227033103,-1191.03085664,0.00017999,2]
[357601043,1744227033114,-1191.03085664,0.00017999,2]
[357601044,1744227033124,-1191.03085664,0.00017999,2]
[357601045,1744227033135,-1191.03085664,0.00017999,2]
[357601046,1744227033146,-1191.03085664,0.00017999,2]
[357601047,1744227033156,-1191.03085664,0.00017999,2]
[357601048,1744227033167,-1191.03085664,0.00017999,2]
[357601049,1744227033177,-1191.03085664,0.00017999,2]
[357601050,1744227033187,-1191.03085664,0.00017999,2]
[357601051,1744227033197,-1191.03085664,0.00017999,2]
[357601052,1744227033207,-1191.03085664,0.00017999,2]
[357601053,1744227033217,-1191.03085664,0.00017999,2]
[357601054,1744227033227,-1191.03085664,0.00017999,2]
[357601055,1744227033238,-1191.03085664,0.00017999,2]
[357601056,1744227033248,-1191.03085664,0.00017999,2]
[357601057,1744227033258,-1191.03085664,0.00017999,2]
[357601058,1744227033268,-1191.03085664,0.00017999,2]
[357601059,1744227033279,-1191.03085664,0.00017999,2]
[357601060,1744227033289,-1191.03085664,0.00017999,2]
[357601061,1744227033299,-1191.03085664,0.00017999,2]
[357601062,1744227033309,-1191.03085664,0.00017999,2]
[357601063,1744227033319,-1191.03085664,0.00017999,2]
[357601064,1744227033330,-1191.03085664,0.00017999,2]